Cogmind - Beta 16.1 @@@ ROGUE MODE // 2026.04.21 @ 19:22:00 Player: beans Result: Destroyed by X-62 Marksman with Pulse Rifle Performance ------------- Evolutions (2) 1000 Regions Visited (3) 600 Robots Destroyed (27) 135 Value Destroyed (740) 740 Prototype IDs (4) 80 Alien Tech Used (0) 0 Bonus (0) 0 TOTAL SCORE: 2555 Bonus ------- None Cogmind --------- Core Integrity 0/550 Matter 118/300 Energy 44/100 System Corruption 0% Temperature Cool (54) Movement Walking (120) Location -8/Materials Parts ------- > --- POWER (1) -------- (None) > --- PROPULSION (3) --- Improved Carbon-fiber Leg Improved Carbon-fiber Leg > --- UTILITY (2) ------ (None) > --- WEAPON (5) ------- Particle Cannon > --- INVENTORY (5) ---- Light Angular Momentum Engine Cesium-ion Thruster Cesium-ion Thruster Thermal Generator Peak State ------------ > --- POWER ------------ (None) > --- PROPULSION ------- Cesium-ion Thruster Cesium-ion Thruster Cesium-ion Thruster > --- UTILITY ---------- (None) > --- WEAPON ----------- Autogun Autogun Autogun Autogun > --- INVENTORY -------- Cesium-ion Thruster Thermal Generator Particle Cannon Autogun [Rating: 18] Favorites ----------- Power Improved Ion Engine Engine Improved Ion Engine Propulsion Light Treads Treads Light Treads Leg Carbon-fiber Leg Flight Unit Cesium-ion Thruster Utility Large Storage Unit Storage Large Storage Unit Weapon Light Assault Rifle Energy Gun Improved EM Shotgun Energy Cannon Particle Cannon Ballistic Gun Light Assault Rifle Build | -11 -10 -9 -8 ------- Run | Yrd Mat Mat Mat Slots Evolved 4 | . . 2 2 Power . | . . . . Propulsion 1 | . . . 1 Utility . | . . . . Weapon 3 | . . 2 1 Parts Attached 22 | 4 . 5 13 Power 3 | 1 . 2 . Engine 3 | 1 . 2 . Core . | . . . . Reactor . | . . . . Propulsion 8 | 2 . . 6 Treads 2 | 2 . . . Leg 3 | . . . 3 Wheel . | . . . . Hover . | . . . . Flight 3 | . . . 3 Utility 1 | . . 1 . Device . | . . . . Storage 1 | . . 1 . Processor . | . . . . Hackware . | . . . . Protection . | . . . . Artifact . | . . . . Weapon 10 | 1 . 2 7 Energy Gun 2 | . . 2 . Energy Cannon 1 | . . . 1 Ballistic Gun 7 | 1 . . 6 Ballistic Cannon . | . . . . Launcher . | . . . . Special Weapon . | . . . . Impact Weapon . | . . . . Slashing Weapon . | . . . . Piercing Weapon . | . . . . Special Melee Weapon . | . . . . Unidentified Prototypes 2 | . . 2 . Parts Lost 12 | . . 5 7 Power 1 | . . 1 . Propulsion 4 | . . 2 2 Utility . | . . . . Weapon 7 | . . 2 5 Highest Loss Streak 7 | . . 2 7 To Critical Strikes . | . . . . Average Backups 4 | 1 1 6 3 Power 1 | 1 1 1 . Propulsion 2 | . . 3 1 Utility 1 | . . 1 1 Weapon . | . . . 1 Tool/Special . | . . . . Unused Backups 9 | . . 6 3 Power 2 | . . 2 . Propulsion 5 | . . 3 2 Utility 2 | . . 1 1 Weapon . | . . . . Tool/Special . | . . . . Average Slot Usage (%) 51 | . 57 54 34 Engine 9 | . 14 9 . Treads 16 | . 28 16 . Flight 2 | . . . 15 Storage 6 | . . 10 . Energy Gun 4 | . . 7 . Ballistic Gun 12 | . 14 10 14 Peak Build Rating 18 | 4 4 12 18 Average Rating 7 | 2 4 8 10 On Entrance 2 | . 4 4 1 Avg Prop Armor Cover (%) . | . . . . Naked Turns 20 | . . 11 9 Heaviest Build 31 | 4 4 31 12 Greatest Support 40 | 40 40 40 36 Greatest Overweight (x) 1 | . . 1 . Average Overweight (x) . | . . . . Largest Inventory Capacity 15 | 5 5 15 5 Average Capacity 10 | 5 5 14 5 Most Carried 10 | 5 2 10 5 Average Carried 5 | 1 1 6 3 Final Capacity 5 | 5 5 5 5 Final Carried 5 | 1 2 5 4 Class Distribution -------------------- 89% | Mutant 10% | Sprinter Dominant Class ---------------- Mutant | -10/Materials Mutant | -9/Materials Sprinter | -8/Materials Resources | -11 -10 -9 -8 ----------- Run | Yrd Mat Mat Mat Matter Collected 571 | 192 13 170 196 Remotely . | . . . . Salvage Created 999 | . 51 616 332 Parts 66 | . 6 44 16 Haulers Intercepted 1 | . . . 1 Recyclers Shooed . | . . . . Parts Field Recycled . | . . . . Retrieved Matter . | . . . . Parts Self-Destructed . | . . . . Prevented . | . . . . Parts Restored . | . . . . Kills | -11 -10 -9 -8 ------- Run | Yrd Mat Mat Mat Combat Hostiles Destroyed 23 | . 3 14 6 Guns 23 | . 3 14 6 Classes Destroyed 7 | . 1 5 1 Builder 2 | . . 1 1 Hauler 1 | . . . 1 Watcher 1 | . . 1 . Swarmer 8 | . 3 3 2 Grunt 10 | . . 7 3 Duelist 1 | . . 1 . Sentry 4 | . . 3 1 Best Kill Streak 4 | . 2 4 3 Combat Bots Only 3 | . 2 3 3 Max Kills in Single Turn 2 | . 1 2 1 Gunslinging . | . . . . Exploded . | . . . . Melee . | . . . . Uniques/NPCs Destroyed . | . . . . Combat | -11 -10 -9 -8 -------- Run | Yrd Mat Mat Mat Hostile Shots Fired 260 | . 19 102 139 Missed 78 | . 5 34 39 Hits 182 | . 14 68 100 Melee 2 | . . 2 . Projectile 180 | . 14 66 100 Critical Strikes 5 | . . 3 2 Damage Taken 2501 | . 106 892 1503 Core 940 | . 50 336 554 Absorbed by Shields . | . . . . Core Remaining (%) 65 | 100 80 16 . Volleys Fired 141 | 1 19 82 39 Largest 4 | 1 1 2 4 Hottest 92 | 20 20 65 92 Shots Fired 212 | 1 19 114 78 Gun 203 | 1 19 114 69 Cannon 9 | . . . 9 Launcher . | . . . . Special . | . . . . Kinetic 169 | 1 19 80 69 Thermal 16 | . . 7 9 Explosive . | . . . . Electromagnetic 27 | . . 27 . Robot Hit Streak 24 | 1 5 24 10 Robot Miss Streak 8 | . 3 8 3 Penetration Max . | . . . . Secondary Targets 6 | . . 1 5 Max Gunslinging Chain 1 | . . 1 1 Shots Hit Robots 124 | 1 9 65 49 Core Hits 58 | . 4 36 18 Critical Kills . | . . . . Critical Parts Destroyed 1 | . . . 1 Critical Strikes 1 | . . . 1 Destroy 1 | . . . 1 Melee Attacks . | . . . . Impact . | . . . . Slashing . | . . . . Piercing . | . . . . Sneak Attacks . | . . . . Combat Hostiles . | . . . . Follow-up Attacks . | . . . . Damage Inflicted 1581 | 8 77 719 777 Guns 1444 | 8 77 719 640 Cannons 126 | . . . 126 Explosions . | . . . . Melee . | . . . . Ramming 11 | . . . 11 Kinetic 1113 | 8 77 388 640 Thermal 168 | . . 42 126 Explosive . | . . . . Electromagnetic 289 | . . 289 . Impact . | . . . . Slashing . | . . . . Piercing . | . . . . Highest Corruption . | . . . . Average Corruption . | . . . . Corruption Purged . | . . . . Corruption Blocked . | . . . . Overload Shots . | . . . . Overflow Damage . | . . . . Projectiles . | . . . . Explosions . | . . . . Melee . | . . . . Knockbacks . | . . . . Impact . | . . . . Kinetic . | . . . . Secondary . | . . . . Self-Inflicted Damage 5 | . . . 5 Shots . | . . . . Rammed 1 | . . . 1 Targets Rammed 1 | . . . 1 Kicked . | . . . . Crushed . | . . . . Highest Temperature 321 | . . 72 321 Average Temperature 49 | . . 18 97 Received Heat Transfer 828 | . . 396 432 Effects 1 | . . . 1 Short Circuit 1 | . . . 1 Siege Activations . | . . . . Martial Activations . | . . . . Shielding Activations . | . . . . Robots Disrupted . | . . . . Combat Hostiles . | . . . . Robots Corrupted . | . . . . Combat Hostiles . | . . . . Parts Fried . | . . . . Impact Corruptions . | . . . . Robots Melted . | . . . . Combat Hostiles . | . . . . Parts Melted . | . . . . Heat Transferred 322 | . . 100 222 Parts Sabotaged . | . . . . Parts Stolen . | . . . . Parts Stripped . | . . . . Power Chain Reactions 1 | . . 1 . Alert | -11 -10 -9 -8 ------- Run | Yrd Mat Mat Mat Maximum Alert Level . | . . . . Low Security (%) 100 | 100 100 100 100 Level 1 . | . . . . Level 2 . | . . . . Level 3 . | . . . . Level 4 . | . . . . Level 5 . | . . . . High Security . | . . . . Max Security . | . . . . Peak Influence 119 | . 41 119 92 Initial 29 | . . . 29 Average 33 | . 12 42 38 Influence Increases 684 | . 95 386 203 Destroy 0b10 Robot/C 460 | . 60 280 120 Destroy 0b10 Robot/NC 20 | . . 10 10 Destroy Leader 104 | . 10 72 22 Successful Hack 85 | . 25 24 36 Disable Machine 15 | . . . 15 Influence Decreases 622 | . 95 314 213 Entered New Map 43 | . . . 43 Time Decay 459 | . 95 264 100 Lost Part 120 | . . 50 70 Squads Dispatched 5 | . . 3 2 Investigation 3 | . . 2 1 Extermination . | . . . . Reinforcement 2 | . . 1 1 Assault . | . . . . Garrison . | . . . . Intercept . | . . . . Searches Triggered . | . . . . Construction Impeded . | . . . . Haulers Reinforced . | . . . . Active Scanning Responses . | . . . . Cargo Convoy Interrupts . | . . . . Stealth | -11 -10 -9 -8 --------- Run | Yrd Mat Mat Mat Distress Signals 5 | . 2 2 1 Communications Jammed . | . . . . Distress Signals . | . . . . Times Spotted 43 | . 3 26 14 Peak Tracking Total 9 | . 2 8 9 Tactical Retreats . | . . . . Traps | -11 -10 -9 -8 ------- Run | Yrd Mat Mat Mat Traps Triggered . | . . . . Indirectly . | . . . . Trap Hack Attempts . | . . . . Triggered . | . . . . Disarmed . | . . . . Reprogrammed . | . . . . Reused . | . . . . Traps Extracted . | . . . . Installed . | . . . . Triggered . | . . . . Machines | -11 -10 -9 -8 ---------- Run | Yrd Mat Mat Mat Machines Disabled 1 | . . . 1 Max in Single Turn 1 | . . . 1 Machines Repaired . | . . . . Machines Dismantled . | . . . . Machines Sabotaged . | . . . . Overloaded Fab Kills . | . . . . Hacking | -11 -10 -9 -8 --------- Run | Yrd Mat Mat Mat Machines Accessed 7 | . 2 2 3 Terminals 7 | . 2 2 3 Fabricators . | . . . . Repair Stations . | . . . . Recycling Units . | . . . . Scanalyzers . | . . . . Garrison Access . | . . . . Total Hacks 25 | . 5 12 8 Successful 15 | . 3 8 4 Failed 10 | . 2 4 4 Catastrophic 2 | . . 1 1 Database Lockouts . | . . . . Manual 15 | . 3 6 6 Terminals 25 | . 5 12 8 Fabricators . | . . . . Repair Stations . | . . . . Recycling Units . | . . . . Scanalyzers . | . . . . Garrison Access . | . . . . Terminal Hacks 15 | . 3 8 4 Record 3 | . . 3 . Robot Analysis 3 | . 1 . 2 Prototype ID Bank 1 | . . 1 . Branch Access Points 1 | . . 1 . Terminal Index 2 | . . 1 1 Alert Level 1 | . . 1 . Assault Status 1 | . . . 1 Hauler Manifests 1 | . . 1 . Zone Layout 2 | . 2 . . Fabricator Hacks . | . . . . Repair Station Hacks . | . . . . Recycling Unit Hacks . | . . . . Scanalyzer . | . . . . Garrison Access Hacks . | . . . . Unauthorized Hacks . | . . . . Terminals . | . . . . Fabricators . | . . . . Repair Stations . | . . . . Recycling Units . | . . . . Scanalyzers . | . . . . Garrison Access . | . . . . Data Cores Recovered . | . . . . Used . | . . . . Hacking Detections 7 | . 2 2 3 Full Trace Events 2 | . . 1 1 Feedback Events . | . . . . Feedback Blocked . | . . . . Robot Schematics Acquired . | . . . . Robots Built . | . . . . Authchips . | . . . . Time . | . . . . Total Robot Build Rating . | . . . . Part Schematics Acquired . | . . . . Parts Built . | . . . . Authchips . | . . . . Time . | . . . . Total Part Build Rating . | . . . . Part Studies Acquired . | . . . . Parts Repaired . | . . . . Time . | . . . . Parts Recycled . | . . . . Recycled Matter . | . . . . Retrieved Matter . | . . . . Retrieved Components . | . . . . Parts Scanalyzed . | . . . . Part Schematics Acquired . | . . . . Parts Damaged . | . . . . Bothacking | -11 -10 -9 -8 ------------ Run | Yrd Mat Mat Mat Used RIF Installer . | . . . . Robots Hacked . | . . . . Non-combat . | . . . . Combat . | . . . . Robot Hacks Applied . | . . . . Relay Couplers Released . | . . . . Fabnet Peak Effective % . | . . . . Robots Rewired . | . . . . Allies Hacked . | . . . . Hacks Repelled . | . . . . Allies | -11 -10 -9 -8 -------- Run | Yrd Mat Mat Mat Total Allies . | . . . . Largest Group . | . . . . Highest-Rated Group . | . . . . Highest-Rated Ally . | . . . . Total Orders . | . . . . Ally Attacks . | . . . . Total Damage . | . . . . Kills . | . . . . Allies Corrupted . | . . . . Allies Melted . | . . . . Intel | -11 -10 -9 -8 ------- Run | Yrd Mat Mat Mat Active Infowar (turns) . | . . . . Robot Analysis Total 3 | . 1 . 2 Derelict Logs Recovered . | . . . . Drone Launches . | . . . . Drone Recoveries . | . . . . Exploration | -11 -10 -9 -8 ------------- Run | Yrd Mat Mat Mat Turns Passed 1371 | 52 314 792 213 Spaces Moved 732 | 39 173 308 212 Core 48 | 18 . 18 12 Treads 484 | 21 173 290 . Legs 8 | . . . 8 Wheels . | . . . . Hover . | . . . . Flight 192 | . . . 192 Fastest Speed 29 | 50 160 50 29 Average Speed 131 | 109 160 184 33 Slowest Speed 240 | 160 160 240 120 Overloaded Moves . | . . . . Propulsion Burnouts . | . . . . Robots Hopped 1 | . . . 1 Potential Cave-ins . | . . . . Cave-ins Triggered . | . . . . Exploration Rate (%) 18 | 3 20 33 17 Regions Visited 3 Branch Regions . Pre-discovered Areas . | . . . . Known Exits Taken . | . . . . Unknown Exits Taken 3 | 1 1 1 . Scrap Searched . | . . . . Spaces Dug . | . . . . Terrain Destroyed . | . . . . Melee . | . . . . Projectile . | . . . . AOE . | . . . . Terrain Rammed . | . . . . Walls Destroyed . | . . . . Machines Disabled . | . . . . Actions | -11 -10 -9 -8 --------- Run | Yrd Mat Mat Mat Total 982 | 48 195 436 303 Wait 43 | . 3 15 25 Move 727 | 38 172 307 210 Hop 1 | . . . 1 Pick Up 30 | 5 1 15 9 Fast Attach 3 | . . . 3 Attach 19 | 4 . 4 11 Detach 2 | . . 1 1 Swap 2 | . . 2 . Drop 13 | . . 10 3 Fire 141 | 1 19 82 39 Melee . | . . . . Ram 1 | . . . 1 Kick . | . . . . Crush . | . . . . Escape Stasis . | . . . . Rewire . | . . . . Trap . | . . . . Miscellaneous . | . . . . Route ------- -11/Scrapyard -10/Materials -9/Materials (discovered 3 exits: *Mat / *Min x2) -8/Materials History --------- Turn | Location | Event 26 | -11/Scrapyard | Discovered new exit (range 12) 53 | -11/Scrapyard | Entered Materials 301 | -10/Materials | Build established: Mutant 344 | -10/Materials | Discovered new exit (range 14) 367 | -10/Materials | Entered another Materials area 367 | -9/Materials | Evolved 2 slots: Weapon x2 578 | -9/Materials | Identified exit to Mines 1011 | -9/Materials | Discovered new exit (range 11) 1143 | -9/Materials | Core integrity fell below 50% 1152 | -9/Materials | Core integrity fell below 20% 1159 | -9/Materials | Entered another Materials area 1159 | -8/Materials | Evolved 2 slots: Propulsion x1, Weapon x1 1328 | -8/Materials | Core integrity fell below 50% 1356 | -8/Materials | Core integrity fell below 20% 1372 | -8/Materials | Destroyed by X-62 Marksman with Pulse Rifle Last Messages --------------- Carbon-fiber Leg destroyed. G-50 Soldier destroyed. Slug penetrates Wall. H-55 Commando suffers critical hit (Destroy). Destroyed Lgt. Nuclear Core. Hvy. Assault Rifle destroyed. K-01 Serf collects debris. Acquired 51 matter. Slammed into S-10 Pest. Acquired 15 matter. K-01 Serf collects debris. Acquired Lgt. Angular Momentum Engine. K-01 Serf collects debris. Acquired Imp. Carbon-fiber Leg. K-01 Serf collects debris. Acquired Imp. Carbon-fiber Leg. Penetrated by Slug. Critical hit (Burn: +37). Terminal disabled. Penetrated by Slug. Map ----- +----------------------------------------------------+ | ######## #?# ########?????????????????? | | +####??????# ! #?# # =#?????????????????? | | ???????????# #?# #= #?????????????????? | | ???????????####+##### # """ #?????????????????? | | ?????????????# # # """ #?????????????????? | | ?????????????# + + """ #?????????????????? | | ?????????????#"" # # #?????????????????? | | ?????????????#"Y # ########?????????????????? | | ?????????????#"" # #????????????????????????? | | ?????????????# # #????????????????????????? | | ?????????????######## #????????????????????????? | | ????????????????????# #????????????????????????? | | ????????????????????# #????????????????????????? | | ????????????????????# #????????????????????????? | | ????????????????????# #????????????????????????? | | ????????????????????# #????????????????????????? | | ????????????????????# #???????????????? ???????? | | ????????????????????# =*#######????????! ??????? | | ????????????????????# *# ####### ?????? | | ??????????????# #%*=# [ x ?????? | | ??????????????# !== [== ?????? | | ??????????????# =#####hg g ?????? | | ??????????????# ????#* s ####### ?????? | | ??????????????## ????## #??????????#???????? | | ???????????????# ????# #??????????????????? | | ???????????????# ?????#=@!!!!#??????????????????? | | ???????????????# ?????#= !!!!#??????????????????? | | ???????????????# ??????########??????????????????? | | ?????????????????????????????????????????????????? | | ?????????????????????????????????????????????????? | | ?????????????????????????????????????????????????? | | ?????????????????????????????????????????????????? | | ?????????????????????????????????????????????????? | | ?????????????????H???????????????????????????????? | | ?????????????????????????????????????????????????? | | ?????????????????????????????????????????????????? | | ?????????????????????????????????????????????????? | | ?????????????????????????????????????????????????? | | ?????????????????????????????????????????????????? | | ?????????????????????????????????????????????????? | | ?????????????????????????????????????????????????? | | ?????????????????????????????????????????????????? | | ?????????????????????????????????????????????????? | | ?????????????????????????????????????????????????? | | ?????????????????????????????????????????????????? | | ?????????????????????????????????????????????????? | | ?????????????????????????????????????????????????? | | ?????????????????????????????????????????????????? | | ?????????????????????????????????????????????????? | | ?????????????????????????????????????????????????? | +----------------------------------------------------+ Best States ------------- Heat Dissipation 31 Energy Generation 12 Energy Capacity 265 Matter Stores 300 Matter Capacity 300 Sight Range 16 Terrain Scan Density 10 Evasion (%) 64 Recoil Reduction 2 Item Schematics ----------------- None Robot Schematics ------------------ None Fabricated ------------ Nothing Repaired ---------- Nothing Studied --------- None Alien Tech Used ----------------- None Achievements -------------- None Challenges ------------ None Game ------ Seed SpliceScanPlating Manual? 0 Play Time 00:23:06 Cumulative 272.7 hours Start 2026.04.21 @ 17:54:09 End 2026.04.21 @ 19:22:00 Sessions 10 Manual Loads 0 Difficulty Rogue Special Mode None Game No. 719 Rogue 717 Adventurer 2 Explorer 0 Win Type - Total 0 Types 0/0/0/0/0/0/0/0/0/0 Lore% 68 Gallery% 64 Achievement% 44 Wizard Run 0 Options --------- Layout 2 ASCII 0 Keyboard 0 Movement Mouse Keybinds 0 Fullscreen 1 Font 24/Smallcaps Map View 50x44 Zoom Use 4% Tactical HUD 0 Map Filters NONE Filters NONE Steam 1 RUN: 9386614a-47a5-4604-94e9-7a549534cd73